bitfinex-derivatives/quotes_ETHF0:USTF0_20251117
["timestamp","ask_amount","ask_price","bid_price","bid_amount"]
[1763395200276,3.2078,3122.1,3121.9,0.5738]
[1763395200470,3.2078,3122.1,3122.0,0.5738]
[1763395200969,3.2078,3122.1,3121.8,0.3444]
[1763395201171,3.94478164,3122.1,3121.8,0.3444]
[1763395201367,0.73698164,3122.1,3122.0,3.2078]
[1763395201568,1.1387785,3122.2,3122.0,3.7816]
[1763395201774,1.7081678,3122.4,3122.3,0.5738]
[1763395202278,1.7081678,3122.4,3122.0,3.2078]
[1763395202279,3.2078,3124.4,3122.6,0.5738]
[1763395202472,3.2078,3124.4,3123.7,3.2078]
[1763395202970,0.6222,3123.3,3123.2,0.00480406]
[1763395203276,3.83236364,3123.3,3122.0,3.2078]
[1763395203471,3.83236364,3123.3,3122.5,3.2078]
[1763395203672,3.21016364,3123.3,3122.4,3.5522]
[1763395203879,0.00236364,3123.3,3122.4,3.5522]
[1763395204178,3.21136364,3123.3,3121.8,0.3444]
[1763395205073,3.2078,3122.5,3121.8,0.34779389]
[1763395205273,0.6222,3122.3,3122.2,0.00480406]
[1763395205472,0.6222,3122.3,3121.8,0.00339389]
[1763395205473,3.2078,3122.3,3121.8,0.00339389]
[1763395205676,3.83,3121.9,3121.8,0.00339389]
[1763395205979,3.2078,3122.3,3121.8,0.34779389]
[1763395206276,3.2078,3122.3,3121.8,0.00339389]
[1763395206578,3.21260406,3122.9,3121.9,3.2078]
[1763395206878,3.21260406,3122.9,3121.9,3.72718]
[1763395207069,3.21260406,3122.9,3121.9,3.2078]
[1763395207266,3.21260406,3122.9,3121.9,3.72717]
[1763395207471,3.21260406,3122.9,3121.9,3.2078]
[1763395207778,3.21260406,3122.9,3122.3,3.2078]
[1763395208074,0.00480406,3122.9,3122.8,0.5738]
[1763395208279,0.00236364,3123.3,3123.2,0.5738]
[1763395208666,0.00236364,3123.3,3122.8,3.2078]
[1763395208874,0.00236364,3123.3,3123.2,0.5738]
[1763395209076,0.00236364,3123.3,3122.7,0.3444]
[1763395209271,0.6222,3122.1,3122.0,3.2078]
[1763395209474,0.6222,3121.9,3121.2,3.5522]
[1763395209775,3.2078,3122.2,3121.2,3.5522]
[1763395210279,3.2078,3121.8,3121.2,0.3444]
[1763395210575,3.2078,3121.8,3121.2,0.35208912]
[1763395210977,3.83,3121.3,3120.6,0.3444]
[1763395211168,3.2078,3121.3,3120.8,0.5738]
[1763395211484,3.2078,3121.9,3121.3,0.3444]
[1763395211977,3.2078,3121.9,3121.3,0.34666915]
[1763395212172,3.2078,3121.9,3121.3,0.35147321]
[1763395212674,3.83,3121.4,3120.6,0.3444]
[1763395212878,3.2078,3120.8,3120.0,3.72749]
[1763395213176,3.2078,3120.8,3120.0,0.51969]
[1763395213369,3.2078,3121.2,3120.6,0.3444]
[1763395213571,3.2078,3120.8,3120.1,3.2078]
[1763395213771,3.21633305,3120.8,3120.1,3.21517166]
[1763395213969,0.71982086,3120.7,3120.1,3.21517166]
[1763395214676,3.2078,3120.4,3120.3,0.5738]
[1763395214882,3.2078,3120.4,3120.1,0.00737166]
[1763395215266,0.00853305,3120.8,3120.3,3.2078]
[1763395215467,0.00853305,3120.8,3120.7,0.5738]
[1763395216079,0.00853305,3120.8,3120.1,0.00737166]
[1763395216080,0.6222,3120.2,3120.1,0.00737166]
[1763395216281,0.6222,3120.2,3119.3,3.2078]
[1763395216282,3.83,3120.2,3119.3,3.2078]
[1763395216574,0.71890455,3120.1,3119.3,3.2078]
[1763395216878,3.2078,3119.8,3119.2,0.3444]
[1763395217179,3.2078,3120.2,3119.3,3.2078]
[1763395217381,3.2078,3119.8,3119.3,3.2078]
[1763395217575,3.2078,3119.8,3119.2,0.35328322]
[1763395217779,0.71781556,3119.7,3119.2,0.35328322]
[1763395218282,0.71781556,3119.7,3119.2,0.00888322]
[1763395218472,3.2078,3119.8,3119.2,0.00888322]
[1763395218875,3.2078,3119.8,3119.3,0.51981]
[1763395219077,0.607,3118.8,3118.7,0.03206516]
[1763395219283,3.2078,3119.0,3118.7,0.03206516]
[1763395219478,0.607,3118.8,3118.7,0.03206516]
[1763395220080,0.607,3118.8,3118.7,0.035135]
[1763395220376,0.00480406,3119.1,3118.9,0.5899]
[1763395220686,3.2078,3119.8,3119.2,0.3679]
[1763395220988,3.2078,3120.6,3119.9,0.3679]
[1763395221177,0.00372899,3120.8,3120.6,0.3679]
[1763395221376,0.00372899,3120.8,3120.3,3.2078]
[1763395221781,3.2078,3120.5,3120.2,0.00480406]
[1763395223179,3.2078,3120.5,3119.5,3.2078]
[1763395223480,3.2078,3120.5,3119.5,3.72758]
[1763395223687,3.2078,3120.5,3119.6,0.51976]
[1763395223886,3.2078,3120.5,3119.5,3.2078]
[1763395224088,3.2078,3120.5,3119.7,0.00320279]
[1763395224890,3.2078,3120.1,3119.7,0.00320279]
[1763395225185,3.2078,3120.1,3118.0,3.547]
[1763395225186,6.4168,3119.7,3117.8,0.3654]
[1763395225379,3.2078,3118.8,3118.1,0.52001]
[1763395225580,3.2078,3119.0,3118.5,0.3654]
[1763395226180,3.2078,3119.0,3118.5,0.36885873]
[1763395227079,3.2078,3118.6,3118.5,0.00345873]
[1763395227380,3.21160505,3118.6,3117.8,0.3654]
[1763395227587,3.2078,3117.9,3117.8,0.3654]
[1763395228186,3.2078,3117.9,3117.1,3.5732]
[1763395228389,3.2078,3117.5,3117.1,0.36927917]
[1763395228780,3.2078,3118.4,3117.6,0.3654]
[1763395229383,3.2078,3118.4,3117.9,3.2078]
[1763395229775,3.2078,3118.4,3118.0,0.52002]
[1763395230183,3.2078,3118.4,3117.6,0.88549]
[1763395230375,3.2078,3118.4,3117.6,0.3654]
[1763395230584,0.00480406,3119.1,3118.4,0.3654]
[1763395230785,3.2078,3119.2,3118.7,3.2078]
[1763395231090,3.2078,3119.2,3118.4,0.3654]
[1763395231390,3.2078,3119.4,3118.7,0.51989]
[1763395231588,3.2078,3118.8,3118.4,0.3654]
[1763395233595,3.2078,3118.8,3118.6,0.51992]
[1763395233787,3.2078,3118.8,3118.4,0.88534]
[1763395234086,0.00481186,3118.9,3118.7,0.51991]
[1763395234394,3.2078,3119.2,3118.8,0.51988]
[1763395234690,3.2078,3119.2,3118.6,3.2078]
[1763395235089,3.2078,3119.2,3118.4,0.3654]
[1763395235392,0.00481186,3119.1,3118.4,0.3654]
[1763395235586,0.00481186,3119.1,3118.8,0.51989]
[1763395236092,0.00481186,3119.1,3118.4,0.3654]
[1763395236386,3.2078,3120.0,3119.9,0.3654]
[1763395237388,0.00385631,3120.0,3119.9,0.36845876]
[1763395238093,3.21165631,3120.0,3119.9,0.00305876]
[1763395240491,3.21165631,3120.0,3119.2,0.3654]
[1763395240691,3.2078,3119.3,3118.0,3.2078]
[1763395240893,3.2078,3118.6,3118.4,0.88534]
[1763395241095,1.69584911,3120.0,3118.4,0.88534]
[1763395241096,3.2078,3119.1,3118.5,0.51994]
[1763395241294,3.2078,3119.1,3118.4,0.88536]
[1763395241594,3.2078,3118.7,3118.4,0.37428076]
[1763395241789,3.2078,3119.2,3118.7,0.51991]
[1763395242094,3.2078,3119.2,3118.7,0.51989]
[1763395242295,3.2078,3119.2,3118.5,3.2078]
[1763395242498,3.2078,3119.6,3118.9,0.51986]
[1763395242698,3.2078,3119.6,3118.5,3.2078]
[1763395242699,3.2078,3119.1,3118.6,0.51991]
[1763395242903,3.2078,3119.1,3118.7,0.5199]
[1763395243203,1.2838,3119.1,3119.0,0.51986]
[1763395243390,3.21165631,3120.0,3119.2,0.88522]
[1763395243596,0.71716207,3119.9,3119.4,3.2078]
[1763395243998,0.71716207,3119.9,3119.0,3.2078]
[1763395244206,1.05366207,3119.9,3119.0,3.72765]
[1763395244400,0.71716207,3119.9,3119.1,0.51983]
[1763395244905,1.05366207,3119.9,3119.0,3.2078]
[1763395245600,3.2078,3119.5,3119.0,3.2078]
[1763395245796,0.71716207,3119.4,3119.0,3.2078]
[1763395246203,1.6919928,3119.8,3119.2,0.88522]
[1763395246204,0.71716207,3119.3,3119.2,0.88522]
[1763395246506,3.2078,3119.9,3119.4,0.51978]
[1763395246705,0.71889185,3119.8,3119.4,3.2078]
[1763395247300,0.71889185,3119.8,3119.2,0.3654]
[1763395247497,0.71889185,3119.8,3119.0,3.2178]
[1763395247698,0.71889185,3119.8,3119.0,3.2278]
[1763395248306,1.84327783,3119.8,3119.0,3.2278]
[1763395248494,1.12438598,3119.6,3119.0,3.2278]
[1763395248690,3.2078,3119.5,3119.0,3.2278]
[1763395248899,0.71889185,3119.4,3119.0,3.2278]
[1763395249494,1.6919928,3119.8,3119.2,0.3654]
[1763395249495,1.12438598,3119.8,3119.2,0.3654]
[1763395249692,1.84281254,3119.8,3119.1,3.2078]
[1763395249897,3.2078,3119.5,3119.1,3.2078]
[1763395250109,0.71842656,3119.4,3119.1,3.2078]
[1763395250493,0.71842656,3119.4,3119.0,0.02]
[1763395250707,1.84281254,3119.4,3119.0,0.02]
[1763395251100,0.71842656,3119.3,3119.0,0.02]
[1763395251295,0.71842656,3119.2,3119.0,0.02]
[1763395251607,0.71842656,3119.1,3119.0,0.02]
[1763395251802,0.3983,3118.5,3118.4,0.00888076]
[1763395252008,0.3983,3118.5,3117.4,3.2078]
[1763395252009,3.6061,3118.5,3117.4,3.2078]
[1763395252200,1.13565675,3118.1,3117.4,3.2078]
[1763395252393,5.06188331,3118.1,3117.4,3.2078]
[1763395252594,3.2078,3117.5,3117.0,3.2078]
[1763395252804,0.71785032,3117.4,3117.1,0.4029]
[1763395253007,0.72026226,3117.4,3117.1,0.92614469]
[1763395253211,0.72026226,3117.4,3117.1,0.40596469]
[1763395253704,0.72026226,3117.4,3117.1,0.00306469]
[1763395254311,0.00241194,3117.4,3117.1,0.40596469]
[1763395254509,0.00241194,3117.4,3117.1,0.00306469]
[1763395255312,0.00241194,3117.4,3117.1,0.52323469]
[1763395255513,0.00241194,3117.4,3117.1,0.40596469]
[1763395255712,0.00241194,3117.4,3117.3,0.52014]
[1763395256113,0.00241194,3117.4,3117.1,0.40596469]
[1763395256309,0.00241194,3117.4,3117.3,0.52014]
[1763395256712,0.00241194,3117.4,3117.1,0.40596469]
[1763395257209,0.00241194,3117.4,3117.1,0.00306469]
[1763395257714,0.00241194,3117.4,3117.1,0.92613469]
[1763395257915,0.00241194,3117.4,3117.3,0.6827]
[1763395258113,0.00241194,3117.4,3117.3,1.20284]
[1763395258910,0.00241194,3117.4,3117.3,0.6827]
[1763395259111,0.00241194,3117.4,3117.3,1.20284]
[1763395260314,0.00241194,3117.4,3117.3,0.6827]
[1763395260714,0.00241194,3117.4,3117.3,1.20284]
[1763395260916,1.13565675,3118.7,3117.8,0.4029]
[1763395261116,0.71616084,3118.6,3118.3,3.2078]
[1763395261314,3.2078,3118.9,3118.5,0.4029]
[1763395261512,0.7162482,3118.8,3118.5,0.4029]
[1763395261717,0.7162482,3118.8,3117.3,3.2078]
[1763395262020,3.2078,3117.7,3117.4,0.52012]
[1763395262317,3.2078,3117.7,3117.1,0.40596469]
[1763395262514,0.7170902,3117.6,3117.1,0.00306469]
[1763395262820,3.2078,3117.3,3117.1,0.00306469]
[1763395263020,0.6772,3117.2,3117.1,0.00306469]
[1763395263312,1.3936806,3117.2,3117.1,0.00306469]
[1763395264124,0.6772,3117.0,3115.7,3.6107]
[1763395264416,3.2078,3116.2,3115.2,3.2078]
[1763395264714,3.2078,3116.2,3115.2,3.72829]
[1763395264918,3.2078,3116.2,3115.7,0.4029]
[1763395265115,3.2112494,3116.2,3115.7,0.00266986]
[1763395265318,3.2112494,3116.2,3115.7,0.40556986]
[1763395265819,3.2112494,3116.2,3115.7,0.00266986]
[1763395266217,3.2078,3115.8,3115.7,0.00266986]
[1763395266909,3.2112494,3116.2,3115.7,0.00266986]
[1763395267116,3.2078,3115.8,3115.7,0.00266986]
[1763395267521,3.2112494,3116.2,3115.7,0.00266986]
[1763395267722,3.2078,3115.8,3115.7,0.00266986]
[1763395267924,3.885,3115.8,3115.7,0.00266986]
[1763395268219,3.2112494,3116.2,3115.7,0.00266986]
[1763395268919,3.2112494,3116.2,3115.8,0.52038]
[1763395269421,3.2112494,3116.2,3116.0,0.52036]
[1763395269725,3.2112494,3116.2,3116.1,1.20304]
[1763395269920,3.2078,3116.8,3116.4,0.4029]
[1763395270221,0.71219257,3116.7,3115.7,0.00266986]
[1763395270424,3.2078,3116.0,3115.7,0.00266986]
[1763395270926,3.21108562,3116.0,3115.7,0.00266986]
[1763395272024,3.21108562,3116.0,3115.6,0.00481186]
[1763395272025,0.3976,3115.7,3115.6,0.00481186]
[1763395272419,3.21108562,3116.0,3115.6,0.00481186]
[1763395272820,0.3976,3115.7,3115.6,0.00481186]
[1763395273117,0.3976,3115.7,3114.0,3.2078]
[1763395273326,3.2078,3114.6,3114.2,0.52066]
[1763395273520,3.2078,3114.6,3114.0,3.72849]
[1763395273725,3.2078,3115.0,3114.3,0.92354]
[1763395273922,3.2078,3114.4,3114.0,3.2078]
[1763395274124,3.2078,3114.4,3114.0,0.00248058]
[1763395275822,0.00481186,3114.5,3114.2,0.52065]
[1763395276022,3.2078,3114.4,3114.0,0.00248058]
[1763395276423,0.3413,3114.3,3114.0,0.00248058]
[1763395277030,3.2078,3114.4,3114.0,0.00248058]
[1763395277427,0.00481186,3114.5,3114.4,0.52063]
[1763395277633,3.2078,3114.8,3114.4,0.52063]
[1763395277634,3.2078,3115.2,3114.4,3.72843]
[1763395277835,3.2078,3114.8,3114.0,0.00248058]
[1763395278024,3.2078,3114.4,3114.0,0.00248058]
[1763395278226,0.3413,3114.3,3114.0,0.00248058]
[1763395278425,3.2078,3114.8,3114.2,3.2078]
[1763395278628,0.00481186,3114.8,3114.7,3.72838]
[1763395278821,0.00481186,3114.8,3114.0,0.00248058]
[1763395279027,3.2078,3114.7,3114.0,0.00248058]
[1763395280131,3.2078,3114.2,3114.0,0.00248058]
[1763395280736,3.2078,3114.2,3112.6,3.2078]
[1763395281030,3.2078,3113.4,3112.6,3.2078]
[1763395281232,3.2078,3113.4,3112.8,0.5209]
[1763395281429,3.2078,3113.4,3112.6,3.2078]
[1763395281738,3.2078,3113.4,3110.8,0.3741]
[1763395281739,3.2078,3113.0,3112.7,0.61003456]
[1763395281941,0.3631,3112.9,3112.1,0.24990855]
[1763395282234,3.2078,3113.0,3112.1,0.24990855]
[1763395282432,3.2078,3112.6,3112.1,0.24990855]
[1763395282830,0.00481186,3113.2,3112.5,3.2078]
[1763395283027,3.2078,3112.9,3112.1,3.21050958]
[1763395283233,3.5709,3112.9,3112.1,3.21050958]
[1763395283646,3.2078,3112.5,3112.1,0.00270958]
[1763395284450,3.2078,3112.5,3110.8,41.1741]
[1763395284451,0.3631,3112.2,3111.2,3.2078]
[1763395284648,3.2078,3112.0,3111.2,3.2078]
[1763395284844,3.2078,3111.6,3110.6,3.2078]
[1763395285148,0.00481997,3111.4,3110.6,3.2078]
[1763395285348,3.21261997,3111.4,3110.6,0.00279382]
[1763395285655,3.2078,3111.0,3110.6,0.00279382]
[1763395285858,3.21145726,3111.0,3110.6,0.00279382]
[1763395286249,0.00365726,3111.0,3110.6,0.00279382]
[1763395286451,3.21145726,3111.0,3110.6,0.00279382]
[1763395287253,3.21145726,3111.0,3109.9,3.2078]
[1763395287457,3.5463,3110.4,3109.9,3.2078]
[1763395287657,3.2078,3110.0,3109.1,3.2078]
[1763395287857,3.2078,3110.0,3108.7,0.6771111]
[1763395287858,3.2078,3110.0,3109.0,3.2078]
[1763395288153,0.00481997,3109.8,3109.0,3.2078]
[1763395288359,0.00481997,3109.8,3109.5,0.52144]
[1763395288658,3.2078,3110.7,3109.6,0.3891]
[1763395288857,3.2078,3110.7,3109.8,3.2078]
[1763395289061,0.00365726,3111.0,3110.2,3.2078]
[1763395289062,3.21145726,3111.0,3110.2,3.2078]
[1763395289261,0.00365726,3111.0,3110.6,0.52126]
[1763395289557,0.00365726,3111.0,3110.7,3.2078]
[1763395289757,0.00365726,3111.0,3110.7,3.72904]
[1763395290059,3.2078,3112.2,3110.7,12.4222]
[1763395290260,3.2078,3111.8,3110.8,3.2078]
[1763395290452,3.5709,3111.2,3109.5,3.2078]
[1763395290652,3.2078,3110.2,3109.1,3.2078]
[1763395291059,0.00411184,3110.2,3109.5,3.2078]
[1763395291263,3.21191184,3110.2,3109.5,3.2078]
[1763395291461,3.21191184,3110.2,3109.5,3.21261997]
[1763395291462,3.21673181,3110.2,3109.5,3.21261997]
[1763395291653,3.21673181,3110.2,3109.5,0.00481997]
[1763395292761,3.2078,3109.8,3109.5,0.00481997]
[1763395293064,0.3631,3109.6,3109.0,0.00402965]
[1763395293366,3.2078,3109.1,3107.3,3.2078]
[1763395293565,3.2078,3107.6,3106.8,3.2078]
[1763395293759,3.2078,3107.8,3107.3,3.2078]
[1763395294062,0.00482781,3107.9,3107.7,3.2078]
[1763395294263,0.00870121,3107.9,3107.7,0.00363072]
[1763395294461,3.2078,3108.9,3107.8,9.72952]
[1763395294762,0.3631,3109.6,3108.3,0.52164]
[1763395294763,3.2078,3109.5,3108.3,0.52164]
[1763395294953,3.2078,3109.5,3108.4,0.52162]
[1763395295160,3.2078,3109.5,3108.6,3.2078]
[1763395295359,0.00482781,3109.4,3108.7,0.00482781]
[1763395296358,0.00482781,3109.4,3109.0,3.2078]
[1763395296652,3.21262781,3109.4,3108.7,0.00482781]
[1763395297359,0.00482781,3109.4,3109.0,3.2078]
[1763395297756,3.21262781,3109.4,3109.0,3.2078]
[1763395297957,3.21262781,3109.4,3108.7,0.00482781]
[1763395298157,3.2078,3109.0,3108.7,0.00482781]
[1763395298358,3.2078,3109.0,3107.7,0.00363072]
[1763395298664,3.2078,3108.6,3107.7,0.00363072]
[1763395298869,3.2078,3108.1,3107.7,0.00363072]
[1763395300155,3.2078,3108.1,3107.7,3.21143072]
[1763395300564,3.2078,3108.5,3107.7,0.00363072]
[1763395300856,3.2078,3108.5,3107.7,0.52537072]
[1763395301063,3.2078,3108.5,3107.7,0.00363072]
[1763395301466,3.2078,3108.1,3107.7,0.00363072]
[1763395302261,0.3631,3108.0,3107.0,3.2078]
[1763395302463,3.2078,3107.2,3106.5,3.2078]
[1763395302668,3.2078,3107.6,3106.5,3.2078]
[1763395302868,3.2078,3107.6,3106.6,0.52193]
[1763395303071,3.2078,3107.6,3106.8,0.5219]
[1763395303268,3.2078,3107.6,3106.5,3.2078]
[1763395303468,3.2078,3107.6,3106.5,0.00245247]
[1763395303469,3.2078,3106.7,3106.5,0.00245247]
[1763395303673,3.2078,3107.1,3106.5,0.00245247]
[1763395303972,3.2078,3106.7,3106.5,0.00245247]
[1763395304473,3.2078,3107.4,3106.5,3.21025247]
[1763395304673,3.2078,3106.9,3106.5,3.21025247]
[1763395305362,3.2078,3106.9,3106.5,3.73220247]
[1763395305563,0.00369455,3107.6,3106.6,6.0]
[1763395305766,0.00369455,3107.6,3106.5,3.21025247]
[1763395305767,3.2078,3107.4,3106.9,3.2078]
[1763395305969,0.00369455,3107.6,3106.9,3.2078]
[1763395306174,0.00369455,3107.6,3106.9,3.72968]
[1763395306573,0.00369455,3107.6,3106.9,3.2078]
[1763395306769,0.00369455,3107.6,3107.3,3.2078]
[1763395306970,0.00369455,3107.6,3107.5,0.52178]
[1763395307375,3.2078,3108.7,3107.6,9.2176]
[1763395307572,3.2078,3108.7,3108.2,3.2078]
[1763395307970,3.2078,3108.7,3107.8,3.2078]
[1763395308171,3.2078,3108.7,3108.0,0.91078]
[1763395308477,3.21620148,3108.7,3108.0,0.00482781]
[1763395308774,3.21620148,3108.7,3108.4,0.52163]
[1763395308775,0.00840148,3108.7,3108.4,0.52163]
[1763395308975,0.00840148,3108.7,3108.2,3.2078]
[1763395309277,0.00840148,3108.7,3108.0,0.39392781]
[1763395309278,0.00840148,3108.7,3108.6,3.2078]
[1763395310869,0.48381,3109.2,3109.0,0.52153]
[1763395311076,0.48381,3109.2,3109.1,3.2078]
[1763395311876,0.48764896,3109.2,3109.1,0.00393651]
[1763395312080,1.21283043,3109.2,3109.1,0.00393651]
[1763395312381,1.21283043,3109.2,3108.6,3.2078]
[1763395312578,0.72518147,3109.1,3108.6,3.2078]
[1763395312987,3.2078,3108.7,3108.2,3.2078]
[1763395313175,3.2078,3109.1,3108.2,0.0037495]
[1763395313380,0.72740565,3109.0,3108.7,3.2078]
[1763395313675,0.48764896,3109.2,3108.7,3.2078]
[1763395313880,0.7274925,3109.1,3108.7,3.2078]
[1763395314087,0.48764896,3109.2,3108.8,0.52157]
[1763395314383,0.48764896,3109.2,3108.9,0.52155]
[1763395314584,0.48764896,3109.2,3108.8,0.3657]
[1763395314980,0.48764896,3109.2,3108.9,0.52155]
[1763395315386,0.48764896,3109.2,3108.7,3.2078]
[1763395315578,0.72788952,3109.1,3108.7,3.2078]
[1763395315888,0.48764896,3109.2,3108.9,0.52155]
[1763395316086,0.48764896,3109.2,3109.0,0.52153]
[1763395316286,0.48764896,3109.2,3108.8,0.3657]
[1763395316489,0.48764896,3109.2,3109.1,0.52152]
[1763395316781,3.2078,3110.3,3109.4,0.52145]
[1763395317079,3.2078,3109.7,3108.9,3.2078]
[1763395317282,3.2078,3109.3,3108.5,3.2078]
[1763395317482,1.13565675,3109.1,3108.5,3.2078]
[1763395318588,3.2078,3108.7,3108.2,0.0037495]
[1763395318888,0.72844475,3108.6,3108.2,0.0037495]
[1763395319279,0.72844475,3108.5,3108.4,3.72943]
[1763395319583,0.00482781,3109.2,3108.4,3.2078]
[1763395319882,0.00482781,3109.2,3109.0,3.2078]
[1763395320088,3.2078,3109.1,3108.2,0.0037495]
[1763395320282,1.13565675,3108.8,3108.2,0.0037495]
[1763395320582,5.07228294,3108.7,3108.2,0.0037495]
[1763395320774,5.07228294,3108.7,3106.1,1.7248467]
[1763395320775,3.2078,3108.3,3106.9,3.2078]
[1763395320975,1.70348513,3108.5,3105.6,2.0905467]
[1763395320976,1.1321916,3107.9,3107.3,3.2078]
[1763395321179,0.72964813,3107.8,3107.3,0.52181]
[1763395321387,0.72964813,3107.7,3107.2,0.3657]
[1763395321582,1.86183973,3107.7,3107.0,3.2078]
[1763395321884,2.2760289,3108.3,3107.0,3.2078]
[1763395321885,1.13205352,3108.3,3107.6,3.2078]
[1763395322085,1.70348513,3108.7,3108.1,0.52168]
[1763395322288,0.3537,3108.8,3108.0,3.2078]
[1763395322580,0.3537,3108.8,3107.1,3.2078]
[1763395322581,3.2078,3108.6,3107.1,3.2078]
[1763395322783,3.5615,3108.0,3107.3,3.2078]
[1763395322986,0.3537,3107.2,3107.0,0.00819216]
[1763395324686,0.00482781,3107.4,3107.0,0.00819216]
[1763395324885,0.00482781,3107.4,3107.2,0.52182]
[1763395325076,0.00482781,3107.4,3107.0,0.00819216]
[1763395325583,0.3537,3107.2,3107.0,0.00819216]
[1763395325788,0.3537,3107.2,3106.2,3.2078]
[1763395325988,3.2078,3106.8,3106.2,3.2078]
[1763395326183,3.2078,3106.8,3106.1,0.064]
[1763395326384,0.3537,3106.4,3106.1,0.064]
[1763395326786,3.56414872,3106.4,3106.1,0.0676799]
[1763395326980,3.56414872,3106.4,3104.5,3.2078]
[1763395326981,0.3537,3105.6,3104.5,3.2078]
[1763395327185,3.2078,3105.0,3104.1,3.2078]
[1763395327384,3.2078,3104.7,3103.5,3.2078]
[1763395327583,3.2078,3104.3,3103.1,3.2078]
[1763395327991,3.21262781,3104.3,3103.7,0.12565399]
[1763395328289,0.3537,3103.2,3102.3,3.2078]
[1763395328490,3.2078,3102.4,3101.4,0.3657]
[1763395328793,3.2078,3102.0,3101.4,0.3657]
[1763395328989,0.3537,3104.1,3101.4,0.3657]
[1763395328990,0.00483574,3102.2,3101.9,3.2078]
[1763395329193,3.2078,3102.3,3101.4,0.3657]
[1763395329389,0.3537,3104.1,3101.4,0.3657]
[1763395329390,3.2078,3102.1,3101.9,0.002748]
[1763395329690,3.2078,3102.1,3100.5,0.3147]
[1763395329882,3.2078,3101.4,3100.5,0.3147]
[1763395330084,3.2078,3101.4,3099.6,0.3657]
[1763395330289,0.00483574,3101.6,3101.0,0.00483574]
[1763395330486,0.00483574,3101.6,3099.6,0.3657]
[1763395330487,3.2078,3101.1,3099.6,0.3657]
[1763395330688,3.2078,3100.0,3099.0,3.2078]
[1763395330889,0.0030013,3100.0,3099.6,0.8888]
[1763395331288,3.2078,3101.7,3099.9,3.2078]
[1763395331591,3.2078,3100.6,3099.7,3.2078]
[1763395331788,0.00483574,3101.1,3099.2,3.2078]
[1763395331984,0.00483574,3101.1,3099.0,0.00407332]
[1763395331985,3.2078,3100.6,3100.1,0.52301]
[1763395332187,0.00355753,3100.6,3100.5,0.3657]
[1763395332693,0.00355753,3100.6,3100.3,3.2078]
[1763395332882,6.0869,3100.5,3099.0,0.00407332]
[1763395333081,3.2078,3099.7,3099.0,0.00407332]
[1763395333784,3.2078,3100.1,3099.2,3.2078]
[1763395334083,0.00355753,3100.6,3100.5,0.3657]
[1763395334282,3.21135753,3100.6,3099.0,0.00407332]
[1763395334490,3.2078,3099.5,3098.6,2.56778433]
[1763395334794,3.2078,3098.7,3097.5,0.52346]
[1763395334982,2.54783574,3099.4,3097.2,0.09064158]
[1763395334983,3.2078,3097.7,3097.2,0.09064158]
[1763395335298,3.2078,3097.3,3096.9,0.3657]
[1763395335484,0.00483574,3097.8,3097.2,3.2078]
[1763395335791,6.37938584,3101.3,3096.9,0.3657]
[1763395335792,3.2078,3098.6,3097.3,3.2078]
[1763395335991,3.2078,3097.7,3096.9,3.57596266]
[1763395336290,3.2078,3097.7,3097.0,0.88924]
[1763395336492,3.2078,3098.1,3097.5,0.52345]
[1763395336688,0.00483574,3097.7,3097.5,0.52345]
[1763395336889,3.0783428,3098.1,3098.0,0.3657]
[1763395337096,0.00364609,3098.1,3098.0,0.36954034]
[1763395337388,2.281,3100.4,3098.0,0.36954034]
[1763395337389,3.2078,3099.0,3098.0,6.36954034]
[1763395337587,3.2078,3099.0,3098.2,3.2078]
[1763395337783,3.2078,3098.6,3098.3,0.00483574]
[1763395338392,0.0038308,3098.6,3098.3,0.00483574]
[1763395338593,3.2078,3098.4,3098.3,0.00483574]
[1763395338990,3.2078,3098.4,3097.1,3.2078]
[1763395339190,3.2078,3097.9,3097.1,3.2078]
[1763395339393,3.2078,3097.9,3097.0,0.3657]
[1763395339394,3.2078,3098.4,3097.5,3.2078]
[1763395339593,3.2078,3097.6,3097.0,0.3657]
[1763395339794,3.2078,3097.2,3095.9,3.2078]
[1763395339991,1.525,3098.5,3095.9,3.2078]
[1763395339992,3.2078,3096.4,3096.0,0.36957856]
[1763395340193,0.00484371,3096.9,3096.7,0.52359]
[1763395340395,3.2078,3097.5,3096.8,3.2078]
[1763395340692,1.525,3099.7,3097.4,3.2078]
[1763395340693,3.2078,3098.1,3097.4,3.2078]
[1763395341087,3.2078,3098.5,3097.8,3.2078]
[1763395341387,3.2078,3099.4,3098.7,0.5714]
[1763395341591,3.2078,3099.4,3099.1,3.2078]
[1763395341592,0.00484371,3099.4,3099.1,3.2078]
[1763395341792,3.2078,3099.8,3099.1,3.2078]
[1763395341995,3.2078,3099.8,3098.7,0.57624371]
[1763395341996,3.2078,3101.0,3100.9,0.5217]
[1763395342295,0.00239834,3101.0,3100.9,0.52410557]
[1763395343087,6.00239834,3101.0,3100.0,3.2078]
[1763395343292,3.2078,3100.3,3098.8,3.2078]
[1763395343591,3.2078,3100.2,3099.2,3.2078]
[1763395343796,3.2078,3100.1,3098.9,0.52322]
[1763395343996,3.2078,3100.1,3098.2,40.8]
[1763395343997,3.2078,3099.1,3098.3,3.2078]
[1763395344196,3.2078,3098.4,3096.7,3.2078]
[1763395344395,3.2078,3097.2,3095.9,3.73153]
[1763395344699,3.2078,3097.2,3096.3,3.73146]
[1763395344901,3.2078,3097.2,3096.3,3.2078]
[1763395345105,3.2078,3097.7,3096.7,3.2078]
[1763395345288,3.2078,3098.9,3097.3,0.52349]
[1763395345491,3.2078,3098.9,3098.0,3.2078]
[1763395345998,3.2078,3098.9,3097.9,1.04509]
[1763395345999,3.2078,3098.4,3097.9,0.5217]
[1763395346197,3.2078,3098.3,3097.9,0.5217]
[1763395346405,0.0023225,3098.4,3097.9,3.7295]
[1763395346891,3.2078,3098.3,3096.9,3.2078]
[1763395347097,3.2078,3097.4,3096.9,3.2078]
[1763395347296,3.2078,3097.4,3096.5,3.2078]
[1763395347599,0.0023225,3098.4,3097.3,3.2078]
[1763395347804,3.2078,3098.7,3097.9,0.5217]